[Event "Titled Tuesday Blitz June 13 Early 2023"]
[White "Sztokbant, Bernardo Vainzoff"]
[Black "De Silva, L M S T"]
[WhiteFideId "2115956"]
[BlackFideId "9953698"]
[WhiteElo "2222"]
[BlackElo "2395"]
[Result "0-1"]
[Round "3"]
[TimeControl "180+2"]
[Date "2023.06.13"]
[WhiteClock "0:00:01"]
[BlackClock "0:01:33"]
[Board "105"]

1. e4 {[%clk 0:03:00]}  c5 {[%clk 0:02:59]} 2. c3 {[%clk 0:02:57]}  g6 {[%clk 0:02:58]} 3. d4 {[%clk 0:02:56]}  cxd4 {[%clk 0:02:57]} 4. cxd4 {[%clk 0:02:57]}  Bg7 {[%clk 0:02:58]} 5. Nf3 {[%clk 0:02:54]}  d6 {[%clk 0:02:58]} 6. Nc3 {[%clk 0:02:53]}  Nf6 {[%clk 0:02:59]} 7. h3 {[%clk 0:02:53]}  O-O {[%clk 0:02:59]} 8. Be2 {[%clk 0:02:52]}  Nc6 {[%clk 0:03:00]} 9. O-O {[%clk 0:02:52]}  a6 {[%clk 0:02:57]} 10. Be3 {[%clk 0:02:50]}  b5 {[%clk 0:02:57]} 11. a3 {[%clk 0:02:48]}  Bb7 {[%clk 0:02:57]} 12. Re1 {[%clk 0:02:29]}  Rc8 {[%clk 0:02:55]} 13. Bf1 {[%clk 0:02:21]}  Na5 {[%clk 0:02:49]} 14. d5 {[%clk 0:02:14]}  Nc4 {[%clk 0:02:48]} 15. Bxc4 {[%clk 0:02:12]}  Rxc4 {[%clk 0:02:49]} 16. Nd2 {[%clk 0:02:08]}  Rc8 {[%clk 0:02:42]} 17. Bd4 {[%clk 0:02:02]}  e5 {[%clk 0:02:37]} 18. dxe6 {[%clk 0:01:59]}  fxe6 {[%clk 0:02:38]} 19. e5 {[%clk 0:01:47]}  Nd5 {[%clk 0:02:37]} 20. Qg4 {[%clk 0:01:43]}  Qd7 {[%clk 0:02:18]} 21. Nf3 {[%clk 0:01:10]}  Nxc3 {[%clk 0:02:16]} 22. Bxc3 {[%clk 0:01:00]}  Bxf3 {[%clk 0:02:14]} 23. gxf3 {[%clk 0:01:01]}  d5 {[%clk 0:02:11]} 24. Rad1 {[%clk 0:01:01]}  Rf5 {[%clk 0:02:07]} 25. Rd3 {[%clk 0:00:59]}  Bh6 {[%clk 0:02:05]} 26. Kf1 {[%clk 0:00:48]}  Qf7 {[%clk 0:01:59]} 27. Ke2 {[%clk 0:00:34]}  Rc4 {[%clk 0:01:57]} 28. Rd4 {[%clk 0:00:31]}  Rxe5+ {[%clk 0:01:46]} 29. Kf1 {[%clk 0:00:30]}  Rxe1+ {[%clk 0:01:42]} 30. Kxe1 {[%clk 0:00:31]}  Bg7 {[%clk 0:01:36]} 31. Rxc4 {[%clk 0:00:29]}  bxc4 {[%clk 0:01:36]} 32. Bxg7 {[%clk 0:00:19]}  Kxg7 {[%clk 0:01:37]} 33. Qd4+ {[%clk 0:00:19]}  Qf6 {[%clk 0:01:38]} 34. Qa7+ {[%clk 0:00:19]}  Kh6 {[%clk 0:01:38]} 35. Qxa6 {[%clk 0:00:17]}  Qxb2 {[%clk 0:01:36]} 36. a4 {[%clk 0:00:11]}  c3 {[%clk 0:01:34]} 37. Qb5 {[%clk 0:00:04]}  Qd2+ {[%clk 0:01:32]} 38. Kf1 {[%clk 0:00:01]}  c2 {[%clk 0:01:33]} 0-1


[Site "https://www.chess.com"]

[Event "Titled Tuesday Blitz June 13 Early 2023"]
[White "Dudzinski, Pawel"]
[Black "Zochowski, Kacper"]
[WhiteFideId "1117890"]
[BlackFideId "1125494"]
[WhiteElo "2099"]
[BlackElo "2235"]
[Result "0-1"]
[Round "3"]
[TimeControl "180+2"]
[Date "2023.06.13"]
[WhiteClock "0:00:09"]
[BlackClock "0:00:11"]
[Board "107"]

1. e4 {[%clk 0:02:32]}  d6 {[%clk 0:02:58]} 2. g3 {[%clk 0:02:29]}  Nf6 {[%clk 0:02:58]} 3. Bg2 {[%clk 0:02:29]}  e5 {[%clk 0:02:58]} 4. Ne2 {[%clk 0:02:26]}  Be7 {[%clk 0:02:59]} 5. d4 {[%clk 0:02:26]}  O-O {[%clk 0:02:59]} 6. O-O {[%clk 0:02:26]}  c6 {[%clk 0:02:59]} 7. a4 {[%clk 0:02:25]}  Qc7 {[%clk 0:03:00]} 8. h3 {[%clk 0:02:26]}  b6 {[%clk 0:02:59]} 9. c4 {[%clk 0:02:26]}  Bb7 {[%clk 0:02:59]} 10. Nbc3 {[%clk 0:02:26]}  a6 {[%clk 0:02:59]} 11. d5 {[%clk 0:02:25]}  cxd5 {[%clk 0:02:58]} 12. Nxd5 {[%clk 0:02:23]}  Nxd5 {[%clk 0:02:57]} 13. cxd5 {[%clk 0:02:24]}  a5 {[%clk 0:02:57]} 14. Be3 {[%clk 0:02:24]}  Nd7 {[%clk 0:02:57]} 15. Rc1 {[%clk 0:02:24]}  Nc5 {[%clk 0:02:57]} 16. Nc3 {[%clk 0:02:24]}  Ba6 {[%clk 0:02:58]} 17. Nb5 {[%clk 0:02:22]}  Bxb5 {[%clk 0:02:58]} 18. axb5 {[%clk 0:02:23]}  Qd8 {[%clk 0:02:59]} 19. f4 {[%clk 0:02:20]}  Bf6 {[%clk 0:02:55]} 20. f5 {[%clk 0:02:20]}  Bg5 {[%clk 0:02:56]} 21. Bxc5 {[%clk 0:02:14]}  Bxc1 {[%clk 0:02:53]} 22. Qxc1 {[%clk 0:02:03]}  bxc5 {[%clk 0:02:18]} 23. f6 {[%clk 0:02:02]}  Kh8 {[%clk 0:02:02]} 24. Qg5 {[%clk 0:01:57]}  g6 {[%clk 0:01:43]} 25. h4 {[%clk 0:01:52]}  Rg8 {[%clk 0:01:40]} 26. Rf3 {[%clk 0:01:47]}  a4 {[%clk 0:01:40]} 27. Bf1 {[%clk 0:01:47]}  a3 {[%clk 0:01:34]} 28. bxa3 {[%clk 0:01:46]}  Ra4 {[%clk 0:01:34]} 29. Qe3 {[%clk 0:01:36]}  Rd4 {[%clk 0:01:29]} 30. g4 {[%clk 0:01:33]}  c4 {[%clk 0:01:30]} 31. h5 {[%clk 0:01:19]}  Qa5 {[%clk 0:01:29]} 32. Rh3 {[%clk 0:01:14]}  g5 {[%clk 0:01:28]} 33. h6 {[%clk 0:01:05]}  Qd8 {[%clk 0:00:52]} 34. Rf3 {[%clk 0:00:54]}  Rg6 {[%clk 0:00:52]} 35. Qf2 {[%clk 0:00:54]}  c3 {[%clk 0:00:50]} 36. Rxc3 {[%clk 0:00:53]}  Rg8 {[%clk 0:00:42]} 37. Rc4 {[%clk 0:00:40]}  Rxc4 {[%clk 0:00:33]} 38. Bxc4 {[%clk 0:00:41]}  Rg6 {[%clk 0:00:29]} 39. b6 {[%clk 0:00:34]}  Rxf6 {[%clk 0:00:29]} 40. Qb2 {[%clk 0:00:27]}  Rf4 {[%clk 0:00:29]} 41. b7 {[%clk 0:00:24]}  Rxg4+ {[%clk 0:00:30]} 42. Kh2 {[%clk 0:00:24]}  Qb8 {[%clk 0:00:20]} 43. Qb6 {[%clk 0:00:21]}  Rxe4 {[%clk 0:00:12]} 44. Qc6 {[%clk 0:00:19]}  Rxc4 {[%clk 0:00:12]} 45. Qxc4 {[%clk 0:00:14]}  Qxb7 {[%clk 0:00:13]} 46. Qc6 {[%clk 0:00:08]}  Qb8 {[%clk 0:00:13]} 47. Qd7 {[%clk 0:00:07]}  Kg8 {[%clk 0:00:12]} 48. Qe7 {[%clk 0:00:06]}  Qb2+ {[%clk 0:00:10]} 49. Kh3 {[%clk 0:00:07]}  Qc3+ {[%clk 0:00:11]} 50. Kg4 {[%clk 0:00:07]}  Qd4+ {[%clk 0:00:11]} 51. Kxg5 {[%clk 0:00:08]}  Qf4+ {[%clk 0:00:11]} 52. Kh5 {[%clk 0:00:08]}  Qh2+ {[%clk 0:00:11]} 53. Kg4 {[%clk 0:00:03]}  Qg2+ {[%clk 0:00:11]} 54. Kh5 {[%clk 0:00:04]}  Qh3+ {[%clk 0:00:11]} 55. Qh4 {[%clk 0:00:04]}  Qf3+ {[%clk 0:00:04]} 56. Qg4+ {[%clk 0:00:05]}  Qxg4+ {[%clk 0:00:04]} 57. Kxg4 {[%clk 0:00:05]}  Kf8 {[%clk 0:00:04]} 58. a4 {[%clk 0:00:06]}  Ke7 {[%clk 0:00:04]} 59. a5 {[%clk 0:00:07]}  Kd7 {[%clk 0:00:04]} 60. a6 {[%clk 0:00:08]}  Kc7 {[%clk 0:00:05]} 61. Kf5 {[%clk 0:00:07]}  Kb8 {[%clk 0:00:05]} 62. Kf6 {[%clk 0:00:07]}  e4 {[%clk 0:00:05]} 63. Kg7 {[%clk 0:00:08]}  e3 {[%clk 0:00:06]} 64. Kxh7 {[%clk 0:00:09]}  e2 {[%clk 0:00:07]} 65. Kg7 {[%clk 0:00:10]}  e1=Q {[%clk 0:00:08]} 66. h7 {[%clk 0:00:10]}  Qh4 {[%clk 0:00:08]} 67. Kxf7 {[%clk 0:00:08]}  Qxh7+ {[%clk 0:00:08]} 68. Ke6 {[%clk 0:00:08]}  Ka7 {[%clk 0:00:09]} 69. Kxd6 {[%clk 0:00:09]}  Kxa6 {[%clk 0:00:09]} 70. Kc6 {[%clk 0:00:10]}  Qe4 {[%clk 0:00:10]} 71. Kc5 {[%clk 0:00:09]}  Kb7 {[%clk 0:00:10]} 72. d6 {[%clk 0:00:10]}  Qc6+ {[%clk 0:00:10]} 73. Kd4 {[%clk 0:00:09]}  Qxd6+ {[%clk 0:00:11]} 0-1


[Site "https://www.chess.com"]

[Event "Titled Tuesday Blitz June 13 Early 2023"]
[White "Eugene, Floryan"]
[Black "Lima, Kleyton Alcantara"]
[WhiteFideId "20694784"]
[BlackFideId "22718397"]
[WhiteElo "2369"]
[BlackElo "2009"]
[Result "1/2-1/2"]
[Round "3"]
[TimeControl "180+2"]
[Date "2023.06.13"]
[WhiteClock "0:00:06"]
[BlackClock "0:00:06"]
[Board "108"]

1. d4 {[%clk 0:03:00]}  Nf6 {[%clk 0:02:59]} 2. c4 {[%clk 0:03:01]}  g6 {[%clk 0:02:59]} 3. Nf3 {[%clk 0:03:00]}  Bg7 {[%clk 0:02:59]} 4. Nc3 {[%clk 0:03:00]}  d5 {[%clk 0:02:59]} 5. Bg5 {[%clk 0:02:58]}  Ne4 {[%clk 0:02:59]} 6. Bh4 {[%clk 0:02:54]}  Nxc3 {[%clk 0:02:54]} 7. bxc3 {[%clk 0:02:55]}  dxc4 {[%clk 0:02:55]} 8. e3 {[%clk 0:02:54]}  b5 {[%clk 0:02:55]} 9. Qb1 {[%clk 0:02:54]}  c6 {[%clk 0:02:35]} 10. a4 {[%clk 0:02:52]}  Bd7 {[%clk 0:02:17]} 11. Be2 {[%clk 0:02:42]}  O-O {[%clk 0:01:54]} 12. Qe4 {[%clk 0:02:12]}  Bf6 {[%clk 0:01:52]} 13. Bxf6 {[%clk 0:02:09]}  exf6 {[%clk 0:01:53]} 14. axb5 {[%clk 0:02:09]}  Bf5 {[%clk 0:01:52]} 15. Qh4 {[%clk 0:02:07]}  cxb5 {[%clk 0:01:50]} 16. e4 {[%clk 0:02:06]}  Be6 {[%clk 0:01:46]} 17. O-O {[%clk 0:01:55]}  Kg7 {[%clk 0:01:22]} 18. Rfb1 {[%clk 0:01:54]}  Qd7 {[%clk 0:01:13]} 19. d5 {[%clk 0:01:37]}  Bg4 {[%clk 0:01:13]} 20. e5 {[%clk 0:01:38]}  f5 {[%clk 0:00:57]} 21. h3 {[%clk 0:01:10]}  Bxf3 {[%clk 0:00:56]} 22. Bxf3 {[%clk 0:01:11]}  a6 {[%clk 0:00:50]} 23. Qf6+ {[%clk 0:01:10]}  Kg8 {[%clk 0:00:48]} 24. h4 {[%clk 0:01:10]}  Qd8 {[%clk 0:00:46]} 25. Qxd8 {[%clk 0:01:07]}  Rxd8 {[%clk 0:00:47]} 26. Rxb5 {[%clk 0:01:08]}  axb5 {[%clk 0:00:45]} 27. Rxa8 {[%clk 0:01:07]}  Nc6 {[%clk 0:00:44]} 28. Rxd8+ {[%clk 0:00:56]}  Nxd8 {[%clk 0:00:45]} 29. Kf1 {[%clk 0:00:52]}  Kf8 {[%clk 0:00:45]} 30. d6 {[%clk 0:00:47]}  f6 {[%clk 0:00:45]} 31. exf6 {[%clk 0:00:43]}  Kf7 {[%clk 0:00:45]} 32. Bd5+ {[%clk 0:00:43]}  Kxf6 {[%clk 0:00:45]} 33. f4 {[%clk 0:00:44]}  Nf7 {[%clk 0:00:33]} 34. d7 {[%clk 0:00:39]}  Nd8 {[%clk 0:00:33]} 35. Ke2 {[%clk 0:00:35]}  Ke7 {[%clk 0:00:32]} 36. Bg8 {[%clk 0:00:35]}  h6 {[%clk 0:00:28]} 37. Bh7 {[%clk 0:00:33]}  Ne6 {[%clk 0:00:26]} 38. g3 {[%clk 0:00:32]}  Nf8 {[%clk 0:00:25]} 39. Bg8 {[%clk 0:00:32]}  Kxd7 {[%clk 0:00:26]} 40. Ke3 {[%clk 0:00:31]}  Kd6 {[%clk 0:00:24]} 41. Bf7 {[%clk 0:00:30]}  Kc5 {[%clk 0:00:20]} 42. h5 {[%clk 0:00:11]}  gxh5 {[%clk 0:00:21]} 43. Bxh5 {[%clk 0:00:11]}  b4 {[%clk 0:00:22]} 44. cxb4+ {[%clk 0:00:11]}  Kxb4 {[%clk 0:00:23]} 45. Kd2 {[%clk 0:00:12]}  Kb3 {[%clk 0:00:23]} 46. Bf7 {[%clk 0:00:12]}  Nd7 {[%clk 0:00:21]} 47. Be6 {[%clk 0:00:12]}  Nc5 {[%clk 0:00:16]} 48. Bxf5 {[%clk 0:00:12]}  Kb2 {[%clk 0:00:17]} 49. g4 {[%clk 0:00:10]}  c3+ {[%clk 0:00:17]} 50. Kd1 {[%clk 0:00:06]}  Ne6 {[%clk 0:00:15]} 51. g5 {[%clk 0:00:04]}  hxg5 {[%clk 0:00:16]} 52. fxg5 {[%clk 0:00:05]}  Nxg5 {[%clk 0:00:16]} 53. Ke2 {[%clk 0:00:04]}  Nf7 {[%clk 0:00:14]} 54. Bg6 {[%clk 0:00:04]}  Nd6 {[%clk 0:00:13]} 55. Bh7 {[%clk 0:00:05]}  Nc4 {[%clk 0:00:13]} 56. Kd1 {[%clk 0:00:05]}  Nd6 {[%clk 0:00:11]} 57. Ke2 {[%clk 0:00:05]}  Kc1 {[%clk 0:00:10]} 58. Bg6 {[%clk 0:00:05]}  Nc4 {[%clk 0:00:08]} 59. Bh7 {[%clk 0:00:05]}  Kb2 {[%clk 0:00:07]} 60. Bg6 {[%clk 0:00:06]}  Nd6 {[%clk 0:00:06]} 61. Bh7 {[%clk 0:00:06]} 1/2-1/2


[Site "https://www.chess.com"]

[Event "Titled Tuesday Blitz June 13 Early 2023"]
[White "Jain Kashish Manoj"]
[Black "Goncalves, Davi Sulzbacher"]
[WhiteFideId "35081098"]
[BlackFideId "2154510"]
[WhiteElo "2181"]
[BlackElo "2182"]
[Result "0-1"]
[Round "3"]
[TimeControl "180+2"]
[Date "2023.06.13"]
[WhiteClock "0:00:03"]
[BlackClock "0:00:40"]
[Board "112"]

1. c4 {[%clk 0:03:00]}  e5 {[%clk 0:02:59]} 2. Nc3 {[%clk 0:03:00]}  Nc6 {[%clk 0:03:00]} 3. g3 {[%clk 0:02:57]}  g6 {[%clk 0:03:00]} 4. Bg2 {[%clk 0:02:54]}  Bg7 {[%clk 0:03:00]} 5. d3 {[%clk 0:02:49]}  Nge7 {[%clk 0:03:00]} 6. h4 {[%clk 0:02:47]}  h6 {[%clk 0:03:00]} 7. Rb1 {[%clk 0:02:36]}  O-O {[%clk 0:02:58]} 8. Nf3 {[%clk 0:02:17]}  d6 {[%clk 0:02:56]} 9. h5 {[%clk 0:02:05]}  g5 {[%clk 0:02:54]} 10. b4 {[%clk 0:01:06]}  Be6 {[%clk 0:02:43]} 11. b5 {[%clk 0:01:05]}  Nd4 {[%clk 0:02:42]} 12. Nxd4 {[%clk 0:01:04]}  exd4 {[%clk 0:02:41]} 13. Ne4 {[%clk 0:01:04]}  c6 {[%clk 0:02:16]} 14. Bxg5 {[%clk 0:00:37]}  hxg5 {[%clk 0:02:08]} 15. h6 {[%clk 0:00:38]}  Be5 {[%clk 0:02:05]} 16. Qc1 {[%clk 0:00:35]}  Ng6 {[%clk 0:01:58]} 17. Nxg5 {[%clk 0:00:28]}  d5 {[%clk 0:01:52]} 18. h7+ {[%clk 0:00:18]}  Kh8 {[%clk 0:01:51]} 19. f4 {[%clk 0:00:04]}  Bd6 {[%clk 0:01:28]} 20. cxd5 {[%clk 0:00:03]}  Bxd5 {[%clk 0:01:23]} 21. Ne4 {[%clk 0:00:02]}  f5 {[%clk 0:01:19]} 22. Nxd6 {[%clk 0:00:03]}  Bxg2 {[%clk 0:01:18]} 23. Rg1 {[%clk 0:00:02]}  Qxd6 {[%clk 0:01:12]} 24. Rxg2 {[%clk 0:00:02]}  c5 {[%clk 0:01:09]} 25. Qb2 {[%clk 0:00:02]}  Rae8 {[%clk 0:01:08]} 26. Kd2 {[%clk 0:00:02]}  Qe6 {[%clk 0:01:07]} 27. Rbg1 {[%clk 0:00:02]}  b6 {[%clk 0:00:52]} 28. Rh1 {[%clk 0:00:02]}  Qd5 {[%clk 0:00:45]} 29. Rhh2 {[%clk 0:00:02]}  Re3 {[%clk 0:00:44]} 30. Kd1 {[%clk 0:00:02]}  Rfe8 {[%clk 0:00:44]} 31. Rh6 {[%clk 0:00:02]}  Qxg2 {[%clk 0:00:40]} 32. Rxg6 {[%clk 0:00:03]} 0-1


[Site "https://www.chess.com"]

[Event "Titled Tuesday Blitz June 13 Early 2023"]
[White "Miranda, Rafael"]
[Black "Szyszylo, Rafal"]
[WhiteFideId "130990"]
[BlackFideId "1109626"]
[WhiteElo "2204"]
[BlackElo "1951"]
[Result "1-0"]
[Round "3"]
[TimeControl "180+2"]
[Date "2023.06.13"]
[WhiteClock "0:01:11"]
[BlackClock "0:01:08"]
[Board "113"]

1. e4 {[%clk 0:03:00]}  d6 {[%clk 0:02:55]} 2. d4 {[%clk 0:03:00]}  g6 {[%clk 0:02:49]} 3. Nc3 {[%clk 0:03:00]}  Nf6 {[%clk 0:02:48]} 4. Nf3 {[%clk 0:03:00]}  Bg7 {[%clk 0:02:40]} 5. Be2 {[%clk 0:03:00]}  O-O {[%clk 0:02:34]} 6. O-O {[%clk 0:03:01]}  Bg4 {[%clk 0:02:33]} 7. Be3 {[%clk 0:03:00]}  Nc6 {[%clk 0:02:31]} 8. h3 {[%clk 0:03:00]}  Bxf3 {[%clk 0:02:30]} 9. Bxf3 {[%clk 0:03:01]}  e5 {[%clk 0:02:31]} 10. d5 {[%clk 0:02:50]}  Ne7 {[%clk 0:02:31]} 11. a4 {[%clk 0:02:49]}  Nd7 {[%clk 0:02:30]} 12. a5 {[%clk 0:02:50]}  a6 {[%clk 0:02:30]} 13. b4 {[%clk 0:02:49]}  f5 {[%clk 0:02:30]} 14. Rb1 {[%clk 0:02:45]}  f4 {[%clk 0:02:30]} 15. Bc1 {[%clk 0:02:44]}  Nf6 {[%clk 0:02:30]} 16. g4 {[%clk 0:02:03]}  g5 {[%clk 0:02:20]} 17. Kg2 {[%clk 0:02:02]}  Ng6 {[%clk 0:02:14]} 18. Kh2 {[%clk 0:01:57]}  Nh4 {[%clk 0:02:14]} 19. Qd3 {[%clk 0:01:55]}  Qe8 {[%clk 0:02:12]} 20. Be2 {[%clk 0:01:54]}  f3 {[%clk 0:02:08]} 21. Bxf3 {[%clk 0:01:53]}  Nxf3+ {[%clk 0:02:07]} 22. Qxf3 {[%clk 0:01:54]}  Nxd5 {[%clk 0:02:06]} 23. Qd3 {[%clk 0:01:51]}  Nf4 {[%clk 0:02:02]} 24. Bxf4 {[%clk 0:01:51]}  exf4 {[%clk 0:02:01]} 25. Nd5 {[%clk 0:01:51]}  c6 {[%clk 0:01:59]} 26. Nc7 {[%clk 0:01:50]}  Qe5 {[%clk 0:01:59]} 27. Nxa8 {[%clk 0:01:49]}  f3+ {[%clk 0:01:59]} 28. Kh1 {[%clk 0:01:48]}  Rxa8 {[%clk 0:01:55]} 29. Qxf3 {[%clk 0:01:48]}  Rf8 {[%clk 0:01:55]} 30. Qd3 {[%clk 0:01:47]}  h5 {[%clk 0:01:54]} 31. Kg2 {[%clk 0:01:47]}  hxg4 {[%clk 0:01:53]} 32. hxg4 {[%clk 0:01:47]}  Rf4 {[%clk 0:01:53]} 33. f3 {[%clk 0:01:48]}  Qe6 {[%clk 0:01:48]} 34. Rbd1 {[%clk 0:01:42]}  Be5 {[%clk 0:01:48]} 35. Qb3 {[%clk 0:01:41]}  Qxb3 {[%clk 0:01:45]} 36. cxb3 {[%clk 0:01:42]}  Kf7 {[%clk 0:01:45]} 37. Rh1 {[%clk 0:01:42]}  Kg6 {[%clk 0:01:45]} 38. Rh5 {[%clk 0:01:42]}  Rf7 {[%clk 0:01:43]} 39. Rdh1 {[%clk 0:01:42]}  Rd7 {[%clk 0:01:43]} 40. Rh6+ {[%clk 0:01:41]}  Kf7 {[%clk 0:01:42]} 41. Rh7+ {[%clk 0:01:42]}  Bg7 {[%clk 0:01:42]} 42. f4 {[%clk 0:01:36]}  gxf4 {[%clk 0:01:41]} 43. Kf3 {[%clk 0:01:37]}  d5 {[%clk 0:01:41]} 44. e5 {[%clk 0:01:36]}  d4 {[%clk 0:01:39]} 45. Kxf4 {[%clk 0:01:37]}  d3 {[%clk 0:01:38]} 46. Kf5 {[%clk 0:01:37]}  Kg8 {[%clk 0:01:36]} 47. e6 {[%clk 0:01:28]}  Rd5+ {[%clk 0:01:35]} 48. Kg6 {[%clk 0:01:28]}  Bc3 {[%clk 0:01:31]} 49. Rxb7 {[%clk 0:01:20]}  Kf8 {[%clk 0:01:24]} 50. Rhh7 {[%clk 0:01:16]}  Ke8 {[%clk 0:01:13]} 51. Rb8+ {[%clk 0:01:09]}  Rd8 {[%clk 0:01:12]} 52. Rxd8+ {[%clk 0:01:10]}  Kxd8 {[%clk 0:01:12]} 53. Rd7+ {[%clk 0:01:10]}  Ke8 {[%clk 0:01:11]} 54. Rxd3 {[%clk 0:01:11]}  Ke7 {[%clk 0:01:08]} 55. Rxc3 {[%clk 0:01:11]} 1-0


[Site "https://www.chess.com"]

[Event "Titled Tuesday Blitz June 13 Early 2023"]
[White "Mogirzan, Matei-Valeriu"]
[Black "Vlassov, Nikolai"]
[WhiteFideId "1257455"]
[BlackFideId "4103360"]
[WhiteElo "1733"]
[BlackElo "2324"]
[Result "1-0"]
[Round "3"]
[TimeControl "180+2"]
[Date "2023.06.13"]
[WhiteClock "0:00:05"]
[BlackClock "0:00:09"]
[Board "115"]

1. e4 {[%clk 0:03:00]}  Nc6 {[%clk 0:02:59]} 2. Nf3 {[%clk 0:03:01]}  d5 {[%clk 0:02:59]} 3. exd5 {[%clk 0:03:02]}  Qxd5 {[%clk 0:02:58]} 4. Nc3 {[%clk 0:03:02]}  Qa5 {[%clk 0:02:57]} 5. b4 {[%clk 0:02:53]}  Qxb4 {[%clk 0:02:54]} 6. Rb1 {[%clk 0:02:53]}  Qd6 {[%clk 0:02:40]} 7. d4 {[%clk 0:02:51]}  a6 {[%clk 0:02:28]} 8. d5 {[%clk 0:02:41]}  Ne5 {[%clk 0:02:07]} 9. Ne4 {[%clk 0:02:38]}  Nxf3+ {[%clk 0:01:59]} 10. gxf3 {[%clk 0:02:20]}  Qg6 {[%clk 0:01:51]} 11. Bf4 {[%clk 0:01:41]}  Nf6 {[%clk 0:01:41]} 12. Ng3 {[%clk 0:01:32]}  Bf5 {[%clk 0:01:24]} 13. Rxb7 {[%clk 0:01:17]}  e5 {[%clk 0:01:05]} 14. Bxe5 {[%clk 0:00:58]}  Bc5 {[%clk 0:00:55]} 15. h4 {[%clk 0:00:34]}  O-O {[%clk 0:00:37]} 16. h5 {[%clk 0:00:30]}  Nxh5 {[%clk 0:00:18]} 17. Rxh5 {[%clk 0:00:25]}  Bxc2 {[%clk 0:00:18]} 18. Qd2 {[%clk 0:00:19]}  Rfe8 {[%clk 0:00:18]} 19. Be2 {[%clk 0:00:11]}  Ba4 {[%clk 0:00:14]} 20. Rxc7 {[%clk 0:00:07]}  Qb1+ {[%clk 0:00:13]} 21. Bd1 {[%clk 0:00:07]}  f6 {[%clk 0:00:12]} 22. Rxc5 {[%clk 0:00:06]}  fxe5 {[%clk 0:00:10]} 23. Rc1 {[%clk 0:00:06]}  Qb5 {[%clk 0:00:09]} 24. Bxa4 {[%clk 0:00:06]}  Qxa4 {[%clk 0:00:10]} 25. Rg5 {[%clk 0:00:06]}  e4 {[%clk 0:00:09]} 26. fxe4 {[%clk 0:00:04]}  Rxe4+ {[%clk 0:00:09]} 27. Nxe4 {[%clk 0:00:04]}  Qxe4+ {[%clk 0:00:10]} 28. Qe3 {[%clk 0:00:05]}  Qh1+ {[%clk 0:00:10]} 29. Ke2 {[%clk 0:00:04]}  Qh4 {[%clk 0:00:09]} 30. Rc7 {[%clk 0:00:04]}  g6 {[%clk 0:00:09]} 31. Qe6+ {[%clk 0:00:04]}  Kh8 {[%clk 0:00:10]} 32. Qf6+ {[%clk 0:00:04]}  Kg8 {[%clk 0:00:09]} 33. Qg7# {[%clk 0:00:05]} 1-0


[Site "https://www.chess.com"]

[Event "Titled Tuesday Blitz June 13 Early 2023"]
[White "Asavasaetakul, Chawit"]
[Black "Matveeva, Olga"]
[WhiteFideId "6204856"]
[BlackFideId "24107018"]
[WhiteElo "1919"]
[BlackElo "2009"]
[Result "1-0"]
[Round "3"]
[TimeControl "180+2"]
[Date "2023.06.13"]
[WhiteClock "0:01:07"]
[BlackClock "0:00:01"]
[Board "117"]

1. e4 {[%clk 0:03:00]}  e6 {[%clk 0:03:00]} 2. Nf3 {[%clk 0:02:55]}  d5 {[%clk 0:02:59]} 3. e5 {[%clk 0:02:53]}  c5 {[%clk 0:02:59]} 4. b4 {[%clk 0:02:50]}  d4 {[%clk 0:02:58]} 5. Bd3 {[%clk 0:02:44]}  cxb4 {[%clk 0:02:53]} 6. a3 {[%clk 0:02:42]}  Nc6 {[%clk 0:02:53]} 7. O-O {[%clk 0:02:40]}  Bc5 {[%clk 0:02:48]} 8. Re1 {[%clk 0:02:35]}  Nge7 {[%clk 0:02:47]} 9. axb4 {[%clk 0:02:22]}  Nxb4 {[%clk 0:02:45]} 10. Be4 {[%clk 0:02:23]}  Nbc6 {[%clk 0:02:36]} 11. Ba3 {[%clk 0:02:18]}  Qb6 {[%clk 0:02:18]} 12. d3 {[%clk 0:02:09]}  Bd7 {[%clk 0:02:15]} 13. Nbd2 {[%clk 0:02:01]}  Bxa3 {[%clk 0:02:09]} 14. Nc4 {[%clk 0:02:00]}  Qc7 {[%clk 0:01:53]} 15. Rxa3 {[%clk 0:01:59]}  O-O {[%clk 0:01:13]} 16. Bxh7+ {[%clk 0:01:47]}  Kxh7 {[%clk 0:01:14]} 17. Ng5+ {[%clk 0:01:47]}  Kg6 {[%clk 0:01:04]} 18. Qg4 {[%clk 0:01:45]}  f5 {[%clk 0:00:36]} 19. Qg3 {[%clk 0:01:45]}  f4 {[%clk 0:00:20]} 20. Qg4 {[%clk 0:01:45]}  Kh6 {[%clk 0:00:17]} 21. Qh4+ {[%clk 0:01:31]}  Kg6 {[%clk 0:00:17]} 22. Qh7+ {[%clk 0:01:25]}  Kxg5 {[%clk 0:00:17]} 23. h4+ {[%clk 0:01:23]}  Kg4 {[%clk 0:00:15]} 24. f3+ {[%clk 0:01:10]}  Kg3 {[%clk 0:00:01]} 25. Nd2 {[%clk 0:01:07]} 1-0


[Site "https://www.chess.com"]